[Event "IV Elllobregat Open Chess Tmnt"]
[Site "Sant Boi de Llobregat, Spain"]
[Date "2023.11.30"]
[Round "1.9"]
[White "Hollan, Martin"]
[Black "Ter-Sahakyan, Samvel"]
[Result "0-1"]
[TimeControl "90min/40moves + 15min/end + 30sec from move 1"]
[WhiteFideId "360937"]
[BlackFideId "13302531"]
[WhiteElo "2345"]
[BlackElo "2618"]

1. e4 {[%clk 01:30:56]} {[%emt 00:00:04]} c5 {[%clk 01:30:54]} {[%emt
00:00:07]} 2. Nf3 {[%clk 01:31:18]} {[%emt 00:00:08]} d6 {[%clk 01:31:20]}
{[%emt 00:00:04]} 3. d4 {[%clk 01:31:26]} {[%emt 00:00:22]} cxd4 {[%clk
01:31:43]} {[%emt 00:00:07]} 4. Nxd4 {[%clk 01:31:51]} {[%emt 00:00:05]} Nf6
{[%clk 01:32:09]} {[%emt 00:00:04]} 5. Nc3 {[%clk 01:32:14]} {[%emt 00:00:07]}
a6 {[%clk 01:32:35]} {[%emt 00:00:04]} 6. Bd3 {[%clk 01:32:26]} {[%emt
00:00:18]} g6 {[%clk 01:29:22]} {[%emt 00:03:43]} 7. h3 {[%clk 01:32:49]}
{[%emt 00:00:07]} Bg7 {[%clk 01:26:23]} {[%emt 00:03:28]} 8. O-O {[%clk
01:32:04]} {[%emt 00:01:14]} O-O {[%clk 01:24:35]} {[%emt 00:02:18]} 9. Re1
{[%clk 01:30:12]} {[%emt 00:02:22]} b5 {[%clk 01:16:31]} {[%emt 00:08:34]} 10.
a3 {[%clk 01:27:46]} {[%emt 00:02:56]} Bb7 {[%clk 01:16:15]} {[%emt 00:00:45]}
11. Bg5 {[%clk 01:27:20]} {[%emt 00:00:54]} Nbd7 {[%clk 01:14:43]} {[%emt
00:02:03]} 12. Qd2 {[%clk 01:27:01]} {[%emt 00:00:49]} Qb6 {[%clk 01:08:12]}
{[%emt 00:07:01]} 13. Nf3 {[%clk 01:19:25]} {[%emt 00:08:07]} Rfe8 {[%clk
01:06:10]} {[%emt 00:02:32]} 14. Bh6 {[%clk 01:07:04]} {[%emt 00:12:50]} Bh8
{[%clk 00:58:43]} {[%emt 00:07:58]} 15. Qf4 {[%clk 01:06:33]} {[%emt 00:01:01]}
Rac8 {[%clk 00:56:05]} {[%emt 00:03:07]} 16. Qh4 {[%clk 01:04:29]} {[%emt
00:02:35]} Ne5 {[%clk 00:52:35]} {[%emt 00:04:00]} 17. Nxe5 {[%clk 01:02:51]}
{[%emt 00:02:09]} dxe5 {[%clk 00:53:00]} {[%emt 00:00:05]} 18. a4 {[%clk
00:58:06]} {[%emt 00:05:15]} b4 {[%clk 00:51:48]} {[%emt 00:01:42]} 19. a5
{[%clk 00:58:02]} {[%emt 00:00:34]} Qd6 {[%clk 00:47:54]} {[%emt 00:04:23]} 20.
Na4 {[%clk 00:51:09]} {[%emt 00:07:24]} b3 {[%clk 00:47:23]} {[%emt 00:01:02]}
21. Red1 {[%clk 00:49:53]} {[%emt 00:01:46]} bxc2 {[%clk 00:31:23]} {[%emt
00:16:29]} 22. Bxc2 {[%clk 00:50:06]} {[%emt 00:00:16]} Qb8 {[%clk 00:29:10]}
{[%emt 00:02:43]} 23. Rac1 {[%clk 00:31:34]} {[%emt 00:19:02]} Red8 {[%emt
00:03:26]} 24. Rxd8+ Rxd8 {[%clk 00:26:14]} 25. Be3 {[%clk 00:27:15]} {[%emt
00:05:22]} Bc6 {[%clk 00:21:54]} {[%emt 00:05:17]} 26. Nb6 {[%clk 00:27:21]}
{[%emt 00:00:25]} Qb7 {[%clk 00:18:43]} {[%emt 00:03:41]} 27. f3 {[%clk
00:27:19]} {[%emt 00:00:32]} Nh5 {[%clk 00:19:01]} {[%emt 00:00:12]} 28. Qe1
{[%clk 00:25:05]} {[%emt 00:02:44]} Nf4 {[%clk 00:17:20]} {[%emt 00:02:11]} 29.
Rd1 {[%clk 00:25:10]} {[%emt 00:00:26]} Rb8 {[%clk 00:15:34]} {[%emt 00:02:15]}
30. Bb3 {[%clk 00:21:59]} {[%emt 00:03:41]} Bb5 {[%clk 00:13:36]} {[%emt
00:02:28]} 31. Rd2 {[%clk 00:17:35]} {[%emt 00:04:54]} Bf6 {[%clk 00:06:18]}
{[%emt 00:07:48]} 32. Qd1 {[%clk 00:16:46]} {[%emt 00:01:19]} Kg7 {[%clk
00:05:47]} {[%emt 00:01:01]} 33. Ba4 {[%clk 00:15:17]} {[%emt 00:02:00]} Qc6
{[%clk 00:06:09]} {[%emt 00:00:07]} 34. Qc2 {[%clk 00:07:35]} {[%emt 00:08:12]}
Bxa4 {[%clk 00:05:31]} {[%emt 00:01:08]} 35. Nxa4 {[%clk 00:07:56]} {[%emt
00:00:08]} Qb5 {[%clk 00:05:09]} {[%emt 00:00:50]} 36. Bb6 {[%clk 00:04:09]}
{[%emt 00:04:19]} Bg5 {[%clk 00:05:17]} {[%emt 00:00:22]} 37. Nc3 {[%clk
00:02:20]} {[%emt 00:02:19]} Qb4 {[%clk 00:03:37]} {[%emt 00:02:07]} 38. Kh2
{[%clk 00:00:51]} {[%emt 00:02:03]} Nh5 {[%clk 00:01:23]} {[%emt 00:02:44]} 39.
Rd1 {[%clk 00:00:36]} {[%emt 00:00:46]} Bf4+ {[%clk 00:01:30]} {[%emt
00:00:22]} 40. Kg1 {[%clk 00:15:34]} {[%emt 00:00:32]} Rxb6 {[%clk 00:16:23]}
{[%emt 00:00:38]} 41. axb6 {[%clk 00:14:00]} {[%emt 00:02:05]} Qxb6+ {[%clk
00:16:31]} {[%emt 00:00:21]} 42. Kh1 {[%clk 00:14:11]} {[%emt 00:00:19]} Ng3+
{[%clk 00:15:59]} {[%emt 00:01:02]} 43. Kh2 {[%clk 00:14:36]} {[%emt 00:00:06]}
e6 {[%clk 00:14:46]} {[%emt 00:01:42]} 44. h4 {[%clk 00:10:21]} {[%emt
00:04:45]} Nxe4+ {[%clk 00:10:53]} {[%emt 00:04:23]} 45. g3 {[%clk 00:10:42]}
{[%emt 00:00:08]} Nxg3 {[%clk 00:09:48]} {[%emt 00:01:35]} 46. Kh3 {[%clk
00:11:02]} {[%emt 00:00:10]} h5 {[%clk 00:06:15]} {[%emt 00:04:03]} 47. Rd7
{[%clk 00:07:09]} {[%emt 00:04:23]} Qg1 {[%clk 00:04:45]} {[%emt 00:01:59]} 48.
Qg2 {[%clk 00:07:30]} {[%emt 00:00:10]} Qe3 {[%clk 00:05:07]} {[%emt 00:00:07]}
49. Nd1 {[%clk 00:01:01]} {[%emt 00:07:00]} Qb3 {[%clk 00:05:32]} {[%emt
00:00:05]} 50. Nc3 {[%clk 00:00:54]} {[%emt 00:00:38]} Nf5 {[%clk 00:03:43]}
{[%emt 00:02:18]} 51. Qe2 {[%clk 00:00:35]} {[%emt 00:00:49]} Nd4 {[%clk
00:02:12]} {[%emt 00:02:00]} 52. Qg2 {[%clk 00:00:39]} {[%emt 00:00:27]} a5
{[%clk 00:02:24]} {[%emt 00:00:19]} 53. Rd8 {[%clk 00:00:33]} {[%emt 00:00:36]}
Nc2 {[%clk 00:01:36]} {[%emt 00:01:17]} 54. Ne4 {[%clk 00:00:35]} {[%emt
00:00:29]} Ne3 {[%clk 00:01:13]} {[%emt 00:00:53]} 55. Qd2 {[%clk 00:00:41]}
{[%emt 00:00:25]} Nd5 {[%clk 00:01:22]} {[%emt 00:00:17]} 56. Qe2 {[%clk
00:00:39]} {[%emt 00:00:35]} Bc1 {[%clk 00:00:59]} {[%emt 00:00:52]} 57. Kh2
{[%clk 00:00:33]} {[%emt 00:00:37]} a4 {[%clk 00:00:55]} {[%emt 00:00:34]} 58.
Nc5 {[%clk 00:00:42]} {[%emt 00:00:21]} Bf4+ {[%clk 00:00:59]} {[%emt
00:00:26]} 59. Kh3 {[%clk 00:00:53]} {[%emt 00:00:20]} Qb6 {[%clk 00:00:50]}
{[%emt 00:00:36]} 60. Rc8 {[%clk 00:01:10]} {[%emt 00:00:16]} Be3 {[%clk
00:00:35]} {[%emt 00:00:45]} 61. Qc2 {[%clk 00:01:00]} {[%emt 00:00:40]} Nf4+
{[%clk 00:00:45]} {[%emt 00:00:20]} 62. Kg3 {[%clk 00:00:52]} {[%emt 00:00:39]}
Qb5 {[%clk 00:00:50]} {[%emt 00:00:25]} 63. Qe4 {[%clk 00:00:55]} {[%emt
00:00:27]} Qxb2 {[%clk 00:00:55]} {[%emt 00:00:25]} 64. Nxe6+ {[%clk 00:01:12]}
{[%emt 00:00:13]} fxe6 {[%clk 00:00:35]} {[%emt 00:00:50]} 65. Rc7+ {[%clk
00:00:48]} {[%emt 00:00:54]} Kh6 {[%clk 00:00:38]} {[%emt 00:00:26]} 66. Qxg6+
{[%clk 00:00:31]} {[%emt 00:00:48]} Nxg6 {[%clk 00:01:00]} {[%emt 00:00:08]}
0-1

[Event "IV Elllobregat Open Chess Tmnt"]
[Site "Sant Boi de Llobregat, Spain"]
[Date "2023.11.30"]
[Round "1.10"]
[White "Sanal, Vahap"]
[Black "Rey Martinez, Jaime"]
[Result "1/2-1/2"]
[TimeControl "90min/40moves + 15min/end + 30sec from move 1"]
[WhiteFideId "6300545"]
[BlackFideId "54549264"]
[WhiteElo "2608"]
[BlackElo "2344"]

1. e4 {[%clk 01:30:56]} {[%emt 00:00:01]} c5 {[%clk 01:30:38]} {[%emt
00:00:24]} 2. Nf3 {[%clk 01:31:19]} {[%emt 00:00:07]} g6 {[%clk 01:30:23]}
{[%emt 00:00:45]} 3. d4 {[%clk 01:30:39]} {[%emt 00:01:09]} cxd4 {[%clk
01:30:46]} {[%emt 00:00:08]} 4. Nxd4 {[%clk 01:31:02]} {[%emt 00:00:06]} Nc6
{[%clk 01:30:39]} {[%emt 00:00:37]} 5. c4 {[%clk 01:31:12]} {[%emt 00:00:19]}
Nf6 {[%clk 01:30:15]} {[%emt 00:00:53]} 6. Nc3 {[%clk 01:31:34]} {[%emt
00:00:09]} d6 {[%clk 01:30:34]} {[%emt 00:00:12]} 7. Be2 {[%clk 01:30:55]}
{[%emt 00:01:07]} Nxd4 {[%clk 01:30:31]} {[%emt 00:00:34]} 8. Qxd4 {[%clk
01:30:26]} {[%emt 00:00:59]} Bg7 {[%clk 01:30:53]} {[%emt 00:00:09]} 9. Be3
{[%clk 01:29:25]} {[%emt 00:01:30]} O-O {[%clk 01:30:48]} {[%emt 00:00:35]} 10.
Qd2 {[%clk 01:29:48]} {[%emt 00:00:07]} a5 {[%clk 01:30:17]} {[%emt 00:01:01]}
11. f3 {[%clk 01:29:55]} {[%emt 00:00:22]} a4 {[%clk 01:29:46]} {[%emt
00:01:02]} 12. O-O {[%clk 01:29:41]} {[%emt 00:00:44]} Qa5 {[%clk 01:28:26]}
{[%emt 00:01:51]} 13. Rac1 {[%clk 01:25:22]} {[%emt 00:04:48]} Be6 {[%clk
01:27:15]} {[%emt 00:01:42]} 14. Rfd1 {[%clk 01:22:57]} {[%emt 00:02:54]} Rfc8
{[%clk 01:26:17]} {[%emt 00:01:28]} 15. Nb5 {[%clk 01:22:53]} {[%emt 00:00:33]}
Qxd2 {[%clk 01:22:47]} {[%emt 00:04:01]} 16. Rxd2 {[%clk 01:23:14]} {[%emt
00:00:09]} Nd7 {[%clk 01:22:19]} {[%emt 00:00:58]} 17. g4 {[%clk 01:23:14]}
{[%emt 00:00:30]} Ne5 {[%clk 01:16:23]} {[%emt 00:06:27]} 18. b3 {[%clk
01:19:30]} {[%emt 00:04:13]} axb3 {[%clk 01:12:44]} {[%emt 00:04:10]} 19. axb3
{[%clk 01:19:51]} {[%emt 00:00:07]} Bd7 {[%clk 01:09:03]} {[%emt 00:04:11]} 20.
Nc3 {[%clk 01:15:31]} {[%emt 00:04:51]} Ra3 {[%clk 01:02:09]} {[%emt 00:07:25]}
21. Nd5 {[%clk 01:15:13]} {[%emt 00:00:46]} Kf8 {[%clk 01:02:00]} {[%emt
00:00:40]} 22. Rb1 {[%clk 01:10:11]} {[%emt 00:05:32]} Be6 {[%clk 00:59:28]}
{[%emt 00:03:02]} 23. Nb6 {[%clk 01:06:33]} {[%emt 00:04:08]} Rc6 {[%clk
00:58:05]} {[%emt 00:01:53]} 24. Kf2 {[%clk 01:05:20]} {[%emt 00:01:42]} Bf6
{[%clk 00:45:19]} {[%emt 00:13:17]} 25. Nd5 {[%clk 00:56:53]} {[%emt 00:08:57]}
Bxd5 {[%clk 00:42:55]} {[%emt 00:02:55]} 26. exd5 {[%clk 00:52:38]} {[%emt
00:04:44]} Rc8 {[%clk 00:42:53]} {[%emt 00:00:32]} 27. g5 {[%clk 00:49:52]}
{[%emt 00:03:16]} Bg7 {[%clk 00:42:59]} {[%emt 00:00:24]} 28. f4 {[%clk
00:50:13]} {[%emt 00:00:09]} Nd7 {[%clk 00:43:18]} {[%emt 00:00:10]} 29. b4
{[%clk 00:50:18]} {[%emt 00:00:26]} b6 {[%clk 00:40:41]} {[%emt 00:03:08]} 30.
Rc2 {[%clk 00:43:33]} {[%emt 00:07:14]} Ke8 {[%clk 00:39:11]} {[%emt 00:02:01]}
31. Bg4 {[%clk 00:38:54]} {[%emt 00:05:09]} Rc3 {[%clk 00:37:21]} {[%emt
00:02:20]} 32. Rxc3 {[%clk 00:35:38]} {[%emt 00:03:46]} Bxc3 {[%clk 00:37:47]}
{[%emt 00:00:04]} 33. Be2 {[%clk 00:26:31]} {[%emt 00:09:37]} Ra8 {[%clk
00:37:58]} {[%emt 00:00:20]} 34. Rb3 {[%clk 00:26:54]} {[%emt 00:00:06]} Bg7
{[%clk 00:38:18]} {[%emt 00:00:10]} 35. Bg4 {[%clk 00:27:07]} {[%emt 00:00:17]}
Ra6 {[%clk 00:33:53]} {[%emt 00:04:55]} 36. Kg3 {[%clk 00:25:18]} {[%emt
00:02:18]} Kd8 {[%clk 00:32:03]} {[%emt 00:02:21]} 37. h4 {[%clk 00:24:04]}
{[%emt 00:01:43]} Kc7 {[%clk 00:30:57]} {[%emt 00:01:36]} 38. h5 {[%clk
00:22:07]} {[%emt 00:02:27]} f5 {[%clk 00:17:08]} {[%emt 00:14:19]} 39. Bf3
{[%clk 00:18:26]} {[%emt 00:04:09]} Ra2 {[%clk 00:16:48]} {[%emt 00:00:52]} 40.
Bd1 {[%clk 00:28:32]} {[%emt 00:05:24]} Kc8 {[%clk 00:24:45]} {[%emt 00:07:33]}
41. Rd3 {[%clk 00:26:24]} {[%emt 00:02:37]} Rb2 {[%clk 00:24:11]} {[%emt
00:01:05]} 42. Bd2 {[%clk 00:24:11]} {[%emt 00:02:41]} Nb8 {[%clk 00:21:59]}
{[%emt 00:02:44]} 43. Ba4 {[%clk 00:19:34]} {[%emt 00:05:07]} Kd8 {[%clk
00:20:42]} {[%emt 00:01:48]} 44. hxg6 {[%clk 00:17:55]} {[%emt 00:02:08]} hxg6
{[%clk 00:20:52]} {[%emt 00:00:19]} 45. Bb5 {[%clk 00:18:23]} {[%emt 00:00:03]}
Ra2 {[%clk 00:19:02]} {[%emt 00:02:19]} 46. Be3 {[%clk 00:17:11]} {[%emt
00:01:41]} Nd7 {[%clk 00:18:00]} {[%emt 00:01:33]} 47. Kf3 {[%clk 00:13:14]}
{[%emt 00:04:28]} Kc7 {[%clk 00:16:15]} {[%emt 00:02:15]} 48. Bf2 {[%clk
00:10:10]} {[%emt 00:03:33]} Rc2 {[%clk 00:15:40]} {[%emt 00:01:05]} 49. Be1
{[%clk 00:10:13]} {[%emt 00:00:27]} Bb2 {[%clk 00:15:06]} {[%emt 00:01:04]} 50.
Re3 {[%clk 00:09:36]} {[%emt 00:01:06]} Kd8 {[%clk 00:15:05]} {[%emt 00:00:31]}
51. Rb3 {[%clk 00:09:23]} {[%emt 00:00:44]} Nf8 {[%clk 00:13:22]} {[%emt
00:02:13]} 52. c5 {[%clk 00:08:11]} {[%emt 00:01:41]} e5 {[%clk 00:11:34]}
{[%emt 00:02:19]} 53. cxd6 {[%clk 00:06:34]} {[%emt 00:02:06]} Nd7 {[%clk
00:09:38]} {[%emt 00:02:26]} 54. Re3 {[%clk 00:03:49]} {[%emt 00:03:15]} e4+
{[%clk 00:04:33]} {[%emt 00:05:36]} 55. Kg3 {[%clk 00:04:16]} {[%emt 00:00:03]}
Bc1 {[%clk 00:04:17]} {[%emt 00:00:46]} 56. Rc3 {[%clk 00:04:09]} {[%emt
00:00:36]} Rxc3+ {[%clk 00:03:33]} {[%emt 00:01:15]} 57. Bxc3 {[%clk 00:04:37]}
{[%emt 00:00:01]} Be3 {[%clk 00:03:48]} {[%emt 00:00:16]} 58. Bc6 {[%clk
00:04:38]} {[%emt 00:00:29]} Bc1 {[%clk 00:03:36]} {[%emt 00:00:42]} 59. Be1
{[%clk 00:03:51]} {[%emt 00:01:16]} Be3 {[%clk 00:02:40]} {[%emt 00:01:26]} 60.
Bc3 {[%clk 00:03:32]} {[%emt 00:00:49]} Bc1 {[%clk 00:02:45]} {[%emt 00:00:26]}
61. Ba4 {[%clk 00:01:16]} {[%emt 00:02:45]} Be3 {[%clk 00:02:51]} {[%emt
00:00:24]} 62. Bd1 {[%clk 00:01:24]} {[%emt 00:00:22]} Bc1 {[%clk 00:02:35]}
{[%emt 00:00:46]} 63. Be2 {[%clk 00:01:45]} {[%emt 00:00:08]} Be3 {[%clk
00:02:51]} {[%emt 00:00:15]} 64. Bf1 {[%clk 00:01:04]} {[%emt 00:01:11]} Bc1
{[%clk 00:03:03]} {[%emt 00:00:19]} 65. Bb5 {[%clk 00:01:16]} {[%emt 00:00:18]}
Be3 {[%clk 00:03:27]} {[%emt 00:00:06]} 66. Ba4 {[%clk 00:01:28]} {[%emt
00:00:18]} Bc1 {[%clk 00:03:53]} {[%emt 00:00:05]} 67. Bc6 {[%clk 00:01:03]}
{[%emt 00:00:54]} Be3 {[%clk 00:04:19]} {[%emt 00:00:05]} 68. Bf6+ {[%clk
00:00:44]} {[%emt 00:00:48]} Nxf6 {[%clk 00:00:52]} {[%emt 00:03:58]} 69. gxf6
{[%clk 00:01:12]} {[%emt 00:00:02]} g5 {[%clk 00:01:19]} {[%emt 00:00:03]} 70.
fxg5 {[%clk 00:01:27]} {[%emt 00:00:15]} Bxg5 {[%clk 00:01:47]} {[%emt
00:00:01]} 71. f7 {[%clk 00:01:55]} {[%emt 00:00:02]} Bh6 {[%clk 00:02:09]}
{[%emt 00:00:09]} 72. Kh4 {[%clk 00:01:55]} {[%emt 00:00:30]} f4 {[%clk
00:01:51]} {[%emt 00:00:48]} 73. Kg4 {[%clk 00:01:14]} {[%emt 00:01:09]} f3
{[%clk 00:02:17]} {[%emt 00:00:06]} 74. Bb5 {[%clk 00:01:26]} {[%emt 00:00:18]}
Bf8 {[%clk 00:01:56]} {[%emt 00:00:51]} 75. Kf4 {[%clk 00:01:34]} {[%emt
00:00:21]} Bxd6+ {[%clk 00:01:59]} {[%emt 00:00:28]} 76. Kxe4 {[%clk 00:02:01]}
{[%emt 00:00:02]} Ke7 {[%clk 00:02:06]} {[%emt 00:00:24]} 77. Kxf3 {[%clk
00:02:18]} {[%emt 00:00:13]} Kxf7 {[%clk 00:02:33]} {[%emt 00:00:03]} 78. Ke4
{[%emt 00:00:30]} 1/2-1/2

[Event "IV Elllobregat Open Chess Tmnt"]
[Site "Sant Boi de Llobregat, Spain"]
[Date "2023.11.30"]
[Round "1.11"]
[White "Gual Pascual, Antonio"]
[Black "Sethuraman, S.P."]
[Result "0-1"]
[TimeControl "90min/40moves + 15min/end + 30sec from move 1"]
[WhiteFideId "2200589"]
[BlackFideId "5021596"]
[WhiteElo "2343"]
[BlackElo "2603"]

1. d4 {[%clk 01:30:55]} {[%emt 00:00:03]} d5 {[%clk 01:30:35]} {[%emt
00:00:25]} 2. c4 {[%clk 01:31:10]} {[%emt 00:00:15]} e6 {[%clk 01:30:57]}
{[%emt 00:00:09]} 3. Nc3 {[%clk 01:31:31]} {[%emt 00:00:09]} Nf6 {[%clk
01:31:01]} {[%emt 00:00:25]} 4. cxd5 {[%clk 01:31:12]} {[%emt 00:00:49]} exd5
{[%clk 01:31:26]} {[%emt 00:00:06]} 5. Bg5 {[%clk 01:31:19]} {[%emt 00:00:23]}
Bb4 {[%clk 01:31:48]} {[%emt 00:00:08]} 6. e3 {[%clk 01:31:31]} {[%emt
00:00:18]} h6 {[%clk 01:32:12]} {[%emt 00:00:07]} 7. Bh4 {[%clk 01:31:27]}
{[%emt 00:00:33]} g5 {[%clk 01:32:11]} {[%emt 00:00:31]} 8. Bg3 {[%clk
01:31:44]} {[%emt 00:00:13]} Ne4 {[%clk 01:32:36]} {[%emt 00:00:05]} 9. Nge2
{[%clk 01:31:43]} {[%emt 00:00:31]} h5 {[%clk 01:31:54]} {[%emt 00:01:13]} 10.
h4 {[%clk 01:31:28]} {[%emt 00:00:45]} Bg4 {[%clk 01:31:06]} {[%emt 00:01:18]}
11. f3 {[%clk 01:28:55]} {[%emt 00:03:03]} Nxg3 {[%clk 01:29:38]} {[%emt
00:01:59]} 12. Nxg3 {[%clk 01:29:14]} {[%emt 00:00:10]} Be6 {[%clk 01:29:35]}
{[%emt 00:00:34]} 13. Qa4+ {[%clk 01:23:11]} {[%emt 00:06:33]} Nc6 {[%clk
01:29:57]} {[%emt 00:00:07]} 14. Bb5 {[%clk 01:23:07]} {[%emt 00:00:34]} Bd7
{[%clk 01:21:29]} {[%emt 00:08:59]} 15. Qb3 {[%clk 01:12:13]} {[%emt 00:11:24]}
Qe7 {[%clk 00:55:04]} {[%emt 00:26:55]} 16. O-O-O {[%clk 01:03:02]} {[%emt
00:09:41]} Qxe3+ {[%clk 00:46:48]} {[%emt 00:08:45]} 17. Kb1 {[%clk 01:02:33]}
{[%emt 00:00:59]} Bxc3 {[%clk 00:46:44]} {[%emt 00:00:34]} 18. Rhe1 {[%clk
01:02:15]} {[%emt 00:00:48]} Qxe1 {[%clk 00:47:07]} {[%emt 00:00:07]} 19. Rxe1+
{[%clk 01:02:40]} {[%emt 00:00:05]} Bxe1 {[%clk 00:47:34]} {[%emt 00:00:03]} 20.
Qe3+ {[%clk 01:02:59]} {[%emt 00:00:11]} Kf8 {[%clk 00:40:26]} {[%emt
00:07:38]} 21. Qxe1 {[%clk 01:01:51]} {[%emt 00:01:38]} Re8 {[%clk 00:39:12]}
{[%emt 00:01:44]} 22. Qd2 {[%clk 01:00:39]} {[%emt 00:01:42]} gxh4 {[%clk
00:38:43]} {[%emt 00:01:00]} 23. Ne2 {[%clk 00:59:49]} {[%emt 00:01:19]} Rg8
{[%clk 00:21:09]} {[%emt 00:18:05]} 24. Qh6+ {[%clk 00:44:38]} {[%emt
00:15:41]} Ke7 {[%clk 00:21:33]} {[%emt 00:00:06]} 25. Bxc6 {[%clk 00:41:57]}
{[%emt 00:03:12]} Bxc6 {[%clk 00:16:42]} {[%emt 00:05:21]} 26. Nf4 {[%clk
00:42:06]} {[%emt 00:00:21]} Kd8 {[%clk 00:15:22]} {[%emt 00:01:51]} 27. Qxh5
{[%clk 00:41:09]} {[%emt 00:01:27]} Kc8 {[%clk 00:15:43]} {[%emt 00:00:09]} 28.
Qxh4 {[%clk 00:41:10]} {[%emt 00:00:29]} Kb8 {[%clk 00:08:59]} {[%emt
00:07:14]} 29. b3 {[%clk 00:36:38]} {[%emt 00:05:02]} a5 {[%clk 00:08:19]}
{[%emt 00:01:10]} 30. a4 {[%clk 00:36:18]} {[%emt 00:00:50]} Re3 {[%clk
00:02:15]} {[%emt 00:06:33]} 31. Kc2 {[%clk 00:35:42]} {[%emt 00:01:06]} Rge8
{[%clk 00:02:35]} {[%emt 00:00:11]} 32. Qf6 {[%clk 00:34:40]} {[%emt 00:01:31]}
R8e7 {[%clk 00:01:57]} {[%emt 00:01:08]} 33. Kd2 {[%clk 00:33:23]} {[%emt
00:01:48]} Ka7 {[%clk 00:02:24]} {[%emt 00:00:03]} 34. Kc2 {[%clk 00:32:58]}
{[%emt 00:00:55]} Re1 {[%clk 00:02:03]} {[%emt 00:00:50]} 35. Kd2 {[%clk
00:33:11]} {[%emt 00:00:18]} R1e3 {[%clk 00:02:02]} {[%emt 00:00:31]} 36. Kc2
{[%clk 00:33:33]} {[%emt 00:00:07]} Rd7 {[%clk 00:02:18]} {[%emt 00:00:15]} 37.
Kb2 {[%clk 00:31:05]} {[%emt 00:02:58]} Re1 {[%clk 00:01:17]} {[%emt 00:01:31]}
38. Kc2 {[%clk 00:31:12]} {[%emt 00:00:23]} Re8 {[%clk 00:00:59]} {[%emt
00:00:47]} 39. Kd2 {[%clk 00:31:00]} {[%emt 00:00:42]} Rde7 {[%clk 00:01:09]}
{[%emt 00:00:20]} 40. Kc2 {[%clk 00:45:09]} {[%emt 00:01:21]} Rd7 {[%clk
00:16:15]} {[%emt 00:00:24]} 41. Kd2 {[%clk 00:42:27]} {[%emt 00:03:12]} Rde7
{[%clk 00:16:41]} {[%emt 00:00:04]} 42. Kc2 {[%clk 00:42:31]} {[%emt 00:00:25]}
Kb8 {[%clk 00:17:01]} {[%emt 00:00:10]} 43. Kd2 {[%clk 00:42:33]} {[%emt
00:00:28]} Bd7 {[%clk 00:16:56]} {[%emt 00:00:36]} 44. Qg5 {[%clk 00:38:49]}
{[%emt 00:04:13]} f5 {[%clk 00:14:12]} {[%emt 00:03:14]} 45. Qg3 {[%clk
00:35:40]} {[%emt 00:03:38]} Bc8 {[%clk 00:12:41]} {[%emt 00:02:02]} 46. Qf2
{[%clk 00:35:42]} {[%emt 00:00:28]} Rd7 {[%clk 00:12:29]} {[%emt 00:00:42]} 47.
Kc2 {[%clk 00:33:31]} {[%emt 00:02:42]} Rd6 {[%clk 00:12:49]} {[%emt 00:00:10]}
48. Qd2 {[%clk 00:33:54]} {[%emt 00:00:06]} b6 {[%clk 00:12:36]} {[%emt
00:00:44]} 49. Kb2 {[%clk 00:34:14]} {[%emt 00:00:09]} Bd7 {[%clk 00:12:21]}
{[%emt 00:00:45]} 50. Nd3 {[%clk 00:33:28]} {[%emt 00:01:16]} Bc8 {[%clk
00:12:34]} {[%emt 00:00:17]} 51. Nf4 {[%clk 00:33:48]} {[%emt 00:00:10]} Kb7
{[%clk 00:12:22]} {[%emt 00:00:42]} 52. Qd3 {[%clk 00:33:20]} {[%emt 00:00:58]}
Bd7 {[%clk 00:12:33]} {[%emt 00:00:20]} 53. Qd2 {[%clk 00:33:13]} {[%emt
00:00:36]} Re7 {[%clk 00:12:45]} {[%emt 00:00:17]} 54. Nd3 {[%clk 00:33:09]}
{[%emt 00:00:34]} Rde6 {[%clk 00:11:56]} {[%emt 00:01:18]} 55. Ne5 {[%clk
00:31:25]} {[%emt 00:02:15]} Bc8 {[%clk 00:12:02]} {[%emt 00:00:25]} 56. f4
{[%clk 00:30:55]} {[%emt 00:00:59]} Rg7 {[%clk 00:10:37]} {[%emt 00:01:56]} 57.
Qf2 {[%clk 00:28:40]} {[%emt 00:02:45]} Rh6 {[%clk 00:11:02]} {[%emt 00:00:05]}
58. Ka3 {[%clk 00:28:56]} {[%emt 00:00:14]} Rh2 {[%clk 00:05:19]} {[%emt
00:06:12]} 59. Qf3 {[%clk 00:29:05]} {[%emt 00:00:20]} Be6 {[%clk 00:05:07]}
{[%emt 00:00:42]} 60. Qc3 {[%clk 00:29:11]} {[%emt 00:00:24]} Bd7 {[%clk
00:02:30]} {[%emt 00:03:07]} 61. Nf3 {[%clk 00:26:01]} {[%emt 00:03:40]} Rhxg2
{[%clk 00:02:48]} {[%emt 00:00:13]} 62. Ng5 {[%clk 00:26:24]} {[%emt 00:00:07]}
Re7 {[%clk 00:02:50]} {[%emt 00:00:28]} 0-1

[Event "IV Elllobregat Open Chess Tmnt"]
[Site "Sant Boi de Llobregat, Spain"]
[Date "2023.11.30"]
[Round "1.12"]
[White "Yuffa, Daniil"]
[Black "Formento, Paolo"]
[Result "1-0"]
[TimeControl "90min/40moves + 15min/end + 30sec from move 1"]
[WhiteFideId "24131423"]
[BlackFideId "861162"]
[WhiteElo "2600"]
[BlackElo "2343"]

1. e4 {[%clk 01:30:51]} {[%emt 00:00:07]} c5 {[%clk 01:29:44]} {[%emt
00:01:17]} 2. Nf3 {[%emt 00:01:27]} e6 {[%clk 01:28:57]} {[%emt 00:00:01]} 3.
c3 {[%emt 00:03:57]} d5 {[%clk 01:23:19]} {[%emt 00:02:32]} 4. e5 {[%clk
01:31:41]} {[%emt 00:00:08]} Nc6 {[%clk 01:23:10]} {[%emt 00:00:39]} 5. d4
{[%clk 01:31:59]} {[%emt 00:00:13]} Bd7 {[%clk 01:22:37]} {[%emt 00:01:03]} 6.
Be2 {[%clk 01:31:28]} {[%emt 00:01:01]} Nge7 {[%clk 01:19:56]} {[%emt
00:03:10]} 7. Na3 {[%clk 01:26:46]} {[%emt 00:05:13]} cxd4 {[%clk 01:18:26]}
{[%emt 00:02:00]} 8. cxd4 {[%emt 00:01:13]} Nf5 {[%clk 01:17:51]} {[%emt
00:00:04]} 9. Nc2 {[%clk 01:27:20]} {[%emt 00:00:12]} Be7 {[%clk 01:17:14]}
{[%emt 00:01:06]} 10. O-O {[%emt 00:04:42]} O-O {[%clk 01:12:39]} {[%emt
00:01:01]} 11. Bd3 {[%emt 00:03:39]} Qb6 {[%emt 00:06:06]} 12. g4 {[%clk
01:21:40]} {[%emt 00:04:50]} Nh4 {[%clk 01:02:37]} {[%emt 00:02:59]} 13. Nxh4
{[%clk 01:19:16]} {[%emt 00:02:55]} Bxh4 {[%clk 01:03:06]} {[%emt 00:00:02]} 14.
g5 {[%clk 01:18:20]} {[%emt 00:01:26]} 1-0